[Event "Titled Tuesday Blitz June 28 Late 2022"]
[White "Kapitsyn, Mark"]
[Black "Kovacevic, Radmila"]
[WhiteFideId "4116240"]
[BlackFideId "933171"]
[WhiteElo "2287"]
[BlackElo "2115"]
[Result "1/2-1/2"]
[Round "04"]
[TimeControl "180+1"]
[Date "2022.06.29"]
[WhiteClock "0:00:07"]
[BlackClock "0:00:03"]

1. e4 {[%clk 0:03:00]}  e5 {[%clk 0:03:00]} 2. Nf3 {[%clk 0:03:00]}  d5 {[%clk 0:03:00]} 3. Nxe5 {[%clk 0:02:59]}  Bd6 {[%clk 0:03:00]} 4. d4 {[%clk 0:02:58]}  dxe4 {[%clk 0:02:59]} 5. Bc4 {[%clk 0:02:58]}  Bxe5 {[%clk 0:02:59]} 6. Qh5 {[%clk 0:02:58]}  Qe7 {[%clk 0:02:59]} 7. Qxe5 {[%clk 0:02:58]}  Qxe5 {[%clk 0:02:59]} 8. dxe5 {[%clk 0:02:59]}  Nc6 {[%clk 0:03:00]} 9. Bf4 {[%clk 0:02:52]}  Nge7 {[%clk 0:02:59]} 10. Bb5 {[%clk 0:02:37]}  Bf5 {[%clk 0:02:55]} 11. O-O {[%clk 0:02:36]}  O-O-O {[%clk 0:02:55]} 12. Bg5 {[%clk 0:02:27]}  Rd5 {[%clk 0:02:52]} 13. Nc3 {[%clk 0:02:15]}  Rxe5 {[%clk 0:02:51]} 14. Bf4 {[%clk 0:02:16]}  Rc5 {[%clk 0:02:23]} 15. Be3 {[%clk 0:02:11]}  Re5 {[%clk 0:02:15]} 16. Bf4 {[%clk 0:02:11]}  Re6 {[%clk 0:02:12]} 17. Bc4 {[%clk 0:02:09]}  Rf6 {[%clk 0:02:11]} 18. Bg5 {[%clk 0:02:07]}  Rg6 {[%clk 0:02:09]} 19. Bxe7 {[%clk 0:01:54]}  Nxe7 {[%clk 0:02:10]} 20. Bxf7 {[%clk 0:01:54]}  Rg5 {[%clk 0:02:01]} 21. Rfe1 {[%clk 0:01:44]}  Rf8 {[%clk 0:01:56]} 22. Bc4 {[%clk 0:01:36]}  Nc6 {[%clk 0:01:32]} 23. Nxe4 {[%clk 0:01:33]}  Bxe4 {[%clk 0:01:28]} 24. Rxe4 {[%clk 0:01:34]}  Ne5 {[%clk 0:01:28]} 25. Be2 {[%clk 0:01:10]}  Rgf5 {[%clk 0:01:07]} 26. f3 {[%clk 0:01:07]}  Nc6 {[%clk 0:01:02]} 27. Rd1 {[%clk 0:01:05]}  a6 {[%clk 0:00:53]} 28. Bc4 {[%clk 0:01:04]}  Rc5 {[%clk 0:00:51]} 29. Bb3 {[%clk 0:00:50]}  Kb8 {[%clk 0:00:46]} 30. c3 {[%clk 0:00:48]}  Rff5 {[%clk 0:00:41]} 31. Rd7 {[%clk 0:00:47]}  Ne5 {[%clk 0:00:33]} 32. Rxg7 {[%clk 0:00:43]}  h5 {[%clk 0:00:30]} 33. Re7 {[%clk 0:00:31]}  Nd3 {[%clk 0:00:29]} 34. Re2 {[%clk 0:00:26]}  Nc1 {[%clk 0:00:28]} 35. Rd2 {[%clk 0:00:26]}  Nxb3 {[%clk 0:00:25]} 36. axb3 {[%clk 0:00:27]}  Rb5 {[%clk 0:00:25]} 37. b4 {[%clk 0:00:20]}  a5 {[%clk 0:00:25]} 38. bxa5 {[%clk 0:00:21]}  Rxa5 {[%clk 0:00:24]} 39. Rd8+ {[%clk 0:00:20]}  Ka7 {[%clk 0:00:24]} 40. Rxc7 {[%clk 0:00:20]}  Ra1+ {[%clk 0:00:23]} 41. Kf2 {[%clk 0:00:21]}  Rb5 {[%clk 0:00:21]} 42. b4 {[%clk 0:00:21]}  Ra2+ {[%clk 0:00:20]} 43. Kg3 {[%clk 0:00:21]}  Rg5+ {[%clk 0:00:20]} 44. Kf4 {[%clk 0:00:19]}  Raxg2 {[%clk 0:00:20]} 45. Rdd7 {[%clk 0:00:20]}  Rb5 {[%clk 0:00:20]} 46. h4 {[%clk 0:00:18]}  Rg6 {[%clk 0:00:19]} 47. Rh7 {[%clk 0:00:17]}  Rf6+ {[%clk 0:00:19]} 48. Ke3 {[%clk 0:00:17]}  Re6+ {[%clk 0:00:19]} 49. Kf2 {[%clk 0:00:18]}  Rd6 {[%clk 0:00:19]} 50. f4 {[%clk 0:00:16]}  Re6 {[%clk 0:00:18]} 51. Kf3 {[%clk 0:00:16]}  Ka6 {[%clk 0:00:17]} 52. Rhe7 {[%clk 0:00:14]}  Rd6 {[%clk 0:00:17]} 53. Rcd7 {[%clk 0:00:14]}  Rc6 {[%clk 0:00:17]} 54. Rc7 {[%clk 0:00:14]}  Rf6 {[%clk 0:00:17]} 55. Rf7 {[%clk 0:00:13]}  Rd6 {[%clk 0:00:16]} 56. f5 {[%clk 0:00:13]}  Rd3+ {[%clk 0:00:15]} 57. Ke4 {[%clk 0:00:13]}  Rd1 {[%clk 0:00:15]} 58. f6 {[%clk 0:00:13]}  Re1+ {[%clk 0:00:16]} 59. Kd3 {[%clk 0:00:13]}  Rd1+ {[%clk 0:00:16]} 60. Ke2 {[%clk 0:00:14]}  Rh1 {[%clk 0:00:17]} 61. Rh7 {[%clk 0:00:13]}  Rxh4 {[%clk 0:00:16]} 62. f7 {[%clk 0:00:13]}  Rf4 {[%clk 0:00:16]} 63. Rh8 {[%clk 0:00:12]}  Rbf5 {[%clk 0:00:16]} 64. Ra8+ {[%clk 0:00:05]}  Kb6 {[%clk 0:00:16]} 65. Re7 {[%clk 0:00:05]}  Rxf7 {[%clk 0:00:16]} 66. Rxf7 {[%clk 0:00:06]}  Rxf7 {[%clk 0:00:16]} 67. Rh8 {[%clk 0:00:07]}  Rf5 {[%clk 0:00:16]} 68. Ke3 {[%clk 0:00:07]}  Kb5 {[%clk 0:00:15]} 69. Kd3 {[%clk 0:00:07]}  Rd5+ {[%clk 0:00:15]} 70. Kc2 {[%clk 0:00:07]}  b6 {[%clk 0:00:15]} 71. Rg8 {[%clk 0:00:07]}  Rf5 {[%clk 0:00:15]} 72. Rh8 {[%clk 0:00:07]}  Kc4 {[%clk 0:00:15]} 73. Rc8+ {[%clk 0:00:06]}  Kb5 {[%clk 0:00:15]} 74. Kb3 {[%clk 0:00:07]}  h4 {[%clk 0:00:14]} 75. Rh8 {[%clk 0:00:07]}  Rf4 {[%clk 0:00:13]} 76. c4+ {[%clk 0:00:07]}  Kc6 {[%clk 0:00:11]} 77. Rh6+ {[%clk 0:00:07]}  Kb7 {[%clk 0:00:09]} 78. Kc3 {[%clk 0:00:06]}  Ka7 {[%clk 0:00:08]} 79. Kd3 {[%clk 0:00:06]}  Rg4 {[%clk 0:00:06]} 80. Rh5 {[%clk 0:00:04]}  Kb7 {[%clk 0:00:06]} 81. Rh6 {[%clk 0:00:05]}  Kc7 {[%clk 0:00:06]} 82. Ke3 {[%clk 0:00:06]}  Rxc4 {[%clk 0:00:05]} 83. b5 {[%clk 0:00:04]}  Rb4 {[%clk 0:00:05]} 84. Kd3 {[%clk 0:00:03]}  h3 {[%clk 0:00:04]} 85. Kc3 {[%clk 0:00:02]}  Rxb5 {[%clk 0:00:04]} 86. Rxh3 {[%clk 0:00:03]}  Rc5+ {[%clk 0:00:05]} 87. Kb3 {[%clk 0:00:03]}  Kc6 {[%clk 0:00:05]} 88. Rh6+ {[%clk 0:00:03]}  Kb5 {[%clk 0:00:06]} 89. Rh4 {[%clk 0:00:04]}  Re5 {[%clk 0:00:06]} 90. Rb4+ {[%clk 0:00:04]}  Ka6 {[%clk 0:00:06]} 91. Rh4 {[%clk 0:00:05]}  Ka5 {[%clk 0:00:05]} 92. Rg4 {[%clk 0:00:04]}  Re3+ {[%clk 0:00:05]} 93. Kb2 {[%clk 0:00:05]}  b5 {[%clk 0:00:05]} 94. Rg2 {[%clk 0:00:05]}  b4 {[%clk 0:00:05]} 95. Rh2 {[%clk 0:00:06]}  Ka4 {[%clk 0:00:05]} 96. Rg2 {[%clk 0:00:06]}  Rb3+ {[%clk 0:00:05]} 97. Ka2 {[%clk 0:00:06]}  Rd3 {[%clk 0:00:02]} 98. Kb2 {[%clk 0:00:06]}  Rb3+ {[%clk 0:00:02]} 99. Ka2 {[%clk 0:00:07]}  Ra3+ {[%clk 0:00:03]} 100. Kb2 {[%clk 0:00:07]}  Rb3+ {[%clk 0:00:03]} 1/2-1/2


[Site "https://www.chess.com"]

[Event "Titled Tuesday Blitz June 28 Late 2022"]
[White "Katz, Alexander"]
[Black "Kostiukov, Alexandr"]
[WhiteFideId "2039796"]
[BlackFideId "14108100"]
[WhiteElo "2371"]
[BlackElo "2202"]
[Result "1/2-1/2"]
[Round "04"]
[TimeControl "180+1"]
[Date "2022.06.29"]
[WhiteClock "0:01:09"]
[BlackClock "0:01:07"]

1. d4 {[%clk 0:03:00]}  g6 {[%clk 0:02:59]} 2. c4 {[%clk 0:02:59]}  Bg7 {[%clk 0:02:59]} 3. Nc3 {[%clk 0:03:00]}  d6 {[%clk 0:03:00]} 4. e4 {[%clk 0:03:00]}  e5 {[%clk 0:02:59]} 5. dxe5 {[%clk 0:02:54]}  dxe5 {[%clk 0:03:00]} 6. Qxd8+ {[%clk 0:02:54]}  Kxd8 {[%clk 0:03:00]} 7. Be3 {[%clk 0:02:54]}  Be6 {[%clk 0:02:57]} 8. O-O-O+ {[%clk 0:02:49]}  Nd7 {[%clk 0:02:57]} 9. h4 {[%clk 0:02:44]}  Bh6 {[%clk 0:02:55]} 10. Bxh6 {[%clk 0:02:42]}  Nxh6 {[%clk 0:02:54]} 11. h5 {[%clk 0:02:38]}  g5 {[%clk 0:02:34]} 12. g3 {[%clk 0:02:17]}  c6 {[%clk 0:02:26]} 13. f4 {[%clk 0:02:05]}  gxf4 {[%clk 0:02:13]} 14. gxf4 {[%clk 0:02:06]}  exf4 {[%clk 0:02:11]} 15. Rh4 {[%clk 0:02:07]}  Ng4 {[%clk 0:02:02]} 16. Rd6 {[%clk 0:01:34]}  Ke7 {[%clk 0:01:30]} 17. Rxe6+ {[%clk 0:01:33]}  fxe6 {[%clk 0:01:30]} 18. Rxg4 {[%clk 0:01:34]}  Rhg8 {[%clk 0:01:31]} 19. Rxg8 {[%clk 0:01:27]}  Rxg8 {[%clk 0:01:30]} 20. Nf3 {[%clk 0:01:27]}  Kf6 {[%clk 0:01:22]} 21. e5+ {[%clk 0:01:17]}  Nxe5 {[%clk 0:01:09]} 22. Ne4+ {[%clk 0:01:17]}  Kf5 {[%clk 0:01:09]} 23. Nd6+ {[%clk 0:01:18]}  Kf6 {[%clk 0:01:10]} 24. Ne4+ {[%clk 0:01:16]}  Kf5 {[%clk 0:01:07]} 25. Nd6+ {[%clk 0:01:09]}  Kf6 {[%clk 0:01:07]} 26. Ne4+ {[%clk 0:01:09]} 1/2-1/2


[Site "https://www.chess.com"]

[Event "Titled Tuesday Blitz June 28 Late 2022"]
[White "Keymer, Vincent"]
[Black "Aggelis, Nikolaos"]
[WhiteFideId "12940690"]
[BlackFideId "4213220"]
[WhiteElo "2548"]
[BlackElo "2154"]
[Result "1-0"]
[Round "04"]
[TimeControl "180+1"]
[Date "2022.06.28"]
[WhiteClock "0:02:18"]
[BlackClock "0:01:29"]

1. b3 {[%clk 0:03:00]}  Nf6 {[%clk 0:02:58]} 2. Bb2 {[%clk 0:03:01]}  d5 {[%clk 0:02:58]} 3. Nf3 {[%clk 0:03:01]}  g6 {[%clk 0:02:58]} 4. g3 {[%clk 0:02:57]}  Bg7 {[%clk 0:02:57]} 5. Bg2 {[%clk 0:02:57]}  O-O {[%clk 0:02:57]} 6. c4 {[%clk 0:02:57]}  c5 {[%clk 0:02:54]} 7. cxd5 {[%clk 0:02:57]}  Qxd5 {[%clk 0:02:54]} 8. Nc3 {[%clk 0:02:54]}  Qd7 {[%clk 0:02:52]} 9. Rc1 {[%clk 0:02:47]}  Nc6 {[%clk 0:02:27]} 10. Na4 {[%clk 0:02:47]}  b6 {[%clk 0:02:22]} 11. Ne5 {[%clk 0:02:45]}  Nxe5 {[%clk 0:02:22]} 12. Bxa8 {[%clk 0:02:46]}  Bb7 {[%clk 0:02:19]} 13. Bxb7 {[%clk 0:02:43]}  Qxb7 {[%clk 0:02:20]} 14. O-O {[%clk 0:02:40]}  Nfd7 {[%clk 0:02:06]} 15. f4 {[%clk 0:02:35]}  Nc6 {[%clk 0:01:59]} 16. Bxg7 {[%clk 0:02:35]}  Kxg7 {[%clk 0:02:00]} 17. e3 {[%clk 0:02:33]}  Nf6 {[%clk 0:01:59]} 18. Qf3 {[%clk 0:02:32]}  Qd7 {[%clk 0:01:57]} 19. d4 {[%clk 0:02:27]}  Qh3 {[%clk 0:01:46]} 20. Qxc6 {[%clk 0:02:24]}  Ng4 {[%clk 0:01:46]} 21. Qg2 {[%clk 0:02:24]}  Qxg2+ {[%clk 0:01:46]} 22. Kxg2 {[%clk 0:02:25]}  Nxe3+ {[%clk 0:01:46]} 23. Kf3 {[%clk 0:02:26]}  Nxf1 {[%clk 0:01:47]} 24. Rxf1 {[%clk 0:02:25]}  cxd4 {[%clk 0:01:48]} 25. Rc1 {[%clk 0:02:26]}  Re8 {[%clk 0:01:40]} 26. Nb2 {[%clk 0:02:24]}  e5 {[%clk 0:01:40]} 27. Re1 {[%clk 0:02:24]}  f6 {[%clk 0:01:38]} 28. Nd3 {[%clk 0:02:22]}  Rc8 {[%clk 0:01:37]} 29. fxe5 {[%clk 0:02:22]}  fxe5 {[%clk 0:01:37]} 30. Rxe5 {[%clk 0:02:21]}  Rc3 {[%clk 0:01:34]} 31. Ke4 {[%clk 0:02:21]}  Rc2 {[%clk 0:01:34]} 32. Re7+ {[%clk 0:02:21]}  Kf6 {[%clk 0:01:34]} 33. Rxa7 {[%clk 0:02:21]}  Rxh2 {[%clk 0:01:34]} 34. Ra6 {[%clk 0:02:20]}  h5 {[%clk 0:01:33]} 35. a4 {[%clk 0:02:20]}  g5 {[%clk 0:01:32]} 36. a5 {[%clk 0:02:20]}  h4 {[%clk 0:01:31]} 37. gxh4 {[%clk 0:02:20]}  gxh4 {[%clk 0:01:31]} 38. axb6 {[%clk 0:02:18]}  Re2+ {[%clk 0:01:29]} 39. Kxd4 {[%clk 0:02:18]} 1-0


[Site "https://www.chess.com"]

[Event "Titled Tuesday Blitz June 28 Late 2022"]
[White "Khan, Taffin"]
[Black "Federzoni, Enzo"]
[WhiteFideId "19700024"]
[BlackFideId "2173301"]
[WhiteElo "1956"]
[BlackElo "1949"]
[Result "1-0"]
[Round "04"]
[TimeControl "180+1"]
[Date "2022.06.29"]
[WhiteClock "0:00:12"]
[BlackClock "0:01:01"]

1. e4 {[%clk 0:03:00]}  c5 {[%clk 0:02:58]} 2. Nf3 {[%clk 0:02:59]}  d6 {[%clk 0:02:59]} 3. c3 {[%clk 0:02:58]}  Nf6 {[%clk 0:02:58]} 4. h3 {[%clk 0:02:57]}  Nc6 {[%clk 0:02:57]} 5. d4 {[%clk 0:02:52]}  cxd4 {[%clk 0:02:54]} 6. cxd4 {[%clk 0:02:52]}  g6 {[%clk 0:02:46]} 7. Nc3 {[%clk 0:02:49]}  d5 {[%clk 0:02:44]} 8. e5 {[%clk 0:02:42]}  Ne4 {[%clk 0:02:43]} 9. Bd3 {[%clk 0:02:42]}  Bf5 {[%clk 0:02:37]} 10. O-O {[%clk 0:02:40]}  Bg7 {[%clk 0:02:34]} 11. Qe2 {[%clk 0:02:23]}  Nxc3 {[%clk 0:02:30]} 12. bxc3 {[%clk 0:02:22]}  Bxd3 {[%clk 0:02:31]} 13. Qxd3 {[%clk 0:02:20]}  O-O {[%clk 0:02:32]} 14. Nh2 {[%clk 0:02:17]}  Na5 {[%clk 0:02:31]} 15. f4 {[%clk 0:02:16]}  Nc4 {[%clk 0:02:29]} 16. g4 {[%clk 0:02:15]}  Rc8 {[%clk 0:02:26]} 17. a3 {[%clk 0:02:13]}  Qa5 {[%clk 0:02:24]} 18. Ra2 {[%clk 0:02:08]}  Nb6 {[%clk 0:02:19]} 19. Rc2 {[%clk 0:01:56]}  Na4 {[%clk 0:02:19]} 20. Bd2 {[%clk 0:01:40]}  Rc4 {[%clk 0:02:18]} 21. f5 {[%clk 0:01:33]}  Rfc8 {[%clk 0:02:16]} 22. Rf3 {[%clk 0:01:28]}  Qb5 {[%clk 0:02:07]} 23. Nf1 {[%clk 0:00:55]}  Qb3 {[%clk 0:01:56]} 24. Ne3 {[%clk 0:00:40]}  Qxa3 {[%clk 0:01:56]} 25. Nxc4 {[%clk 0:00:38]}  Rxc4 {[%clk 0:01:54]} 26. Rc1 {[%clk 0:00:25]}  Qb2 {[%clk 0:01:44]} 27. Rcf1 {[%clk 0:00:23]}  g5 {[%clk 0:01:36]} 28. h4 {[%clk 0:00:22]}  gxh4 {[%clk 0:01:35]} 29. g5 {[%clk 0:00:22]}  Qb6 {[%clk 0:01:30]} 30. f6 {[%clk 0:00:18]}  exf6 {[%clk 0:01:30]} 31. gxf6 {[%clk 0:00:18]}  Bf8 {[%clk 0:01:26]} 32. Rh3 {[%clk 0:00:18]}  Qb2 {[%clk 0:01:06]} 33. Rxh4 {[%clk 0:00:17]}  h6 {[%clk 0:01:07]} 34. Qg3+ {[%clk 0:00:12]}  Kh8 {[%clk 0:01:07]} 35. Bxh6 {[%clk 0:00:12]}  Rxd4 {[%clk 0:01:02]} 36. Bxf8+ {[%clk 0:00:12]}  Rxh4 {[%clk 0:01:01]} 37. Qg7# {[%clk 0:00:12]} 1-0


[Site "https://www.chess.com"]

[Event "Titled Tuesday Blitz June 28 Late 2022"]
[White "Ladan, Nicholas"]
[Black "Rosenberg, Evan S"]
[WhiteFideId "30918855"]
[BlackFideId "2019299"]
[WhiteElo "2167"]
[BlackElo "2189"]
[Result "1-0"]
[Round "04"]
[TimeControl "180+1"]
[Date "2022.06.29"]
[WhiteClock "0:02:48"]
[BlackClock "0:00:37"]

1. d4 {[%clk 0:03:00]}  Nf6 {[%clk 0:03:00]} 2. Bf4 {[%clk 0:03:00]}  b6 {[%clk 0:03:00]} 3. e3 {[%clk 0:02:59]}  Bb7 {[%clk 0:03:00]} 4. Nf3 {[%clk 0:03:00]}  Nh5 {[%clk 0:03:00]} 5. Bg5 {[%clk 0:02:59]}  h6 {[%clk 0:03:00]} 6. Bh4 {[%clk 0:02:57]}  g5 {[%clk 0:03:01]} 7. Ne5 {[%clk 0:02:56]}  Nf4 {[%clk 0:02:30]} 8. exf4 {[%clk 0:02:54]}  gxh4 {[%clk 0:02:30]} 9. Qh5 {[%clk 0:02:54]}  Rh7 {[%clk 0:02:19]} 10. Bd3 {[%clk 0:02:53]}  d6 {[%clk 0:02:19]} 11. Bxh7 {[%clk 0:02:52]}  dxe5 {[%clk 0:02:20]} 12. dxe5 {[%clk 0:02:51]}  Bxg2 {[%clk 0:02:15]} 13. e6 {[%clk 0:02:50]}  Qd1+ {[%clk 0:00:32]} 14. Kxd1 {[%clk 0:02:49]}  Bf3+ {[%clk 0:00:33]} 15. Qxf3 {[%clk 0:02:49]}  fxe6 {[%clk 0:00:34]} 16. Qxa8 {[%clk 0:02:48]}  Bg7 {[%clk 0:00:35]} 17. Qxb8+ {[%clk 0:02:48]}  Kf7 {[%clk 0:00:36]} 18. f5 {[%clk 0:02:48]}  Bxb2 {[%clk 0:00:37]} 19. fxe6+ {[%clk 0:02:47]}  Kg7 {[%clk 0:00:37]} 20. Qg8+ {[%clk 0:02:48]}  Kf6 {[%clk 0:00:37]} 21. Qf7+ {[%clk 0:02:48]}  Kg5 {[%clk 0:00:37]} 22. Qf5# {[%clk 0:02:48]} 1-0


[Site "https://www.chess.com"]

[Event "Titled Tuesday Blitz June 28 Late 2022"]
[White "Lashkin, Jegor"]
[Black "Oparin, Grigoriy"]
[WhiteFideId "13907808"]
[BlackFideId "24125890"]
[WhiteElo "2368"]
[BlackElo "2639"]
[Result "1-0"]
[Round "04"]
[TimeControl "180+1"]
[Date "2022.06.28"]
[WhiteClock "0:00:10"]
[BlackClock "0:00:32"]

1. d4 {[%clk 0:03:00]}  Nf6 {[%clk 0:03:00]} 2. c4 {[%clk 0:03:01]}  g6 {[%clk 0:03:00]} 3. Nc3 {[%clk 0:03:01]}  d5 {[%clk 0:03:01]} 4. Nf3 {[%clk 0:03:01]}  Bg7 {[%clk 0:03:00]} 5. Bg5 {[%clk 0:03:02]}  dxc4 {[%clk 0:02:53]} 6. e4 {[%clk 0:03:02]}  O-O {[%clk 0:02:53]} 7. Bxc4 {[%clk 0:03:02]}  c5 {[%clk 0:02:47]} 8. dxc5 {[%clk 0:02:46]}  h6 {[%clk 0:02:39]} 9. Bf4 {[%clk 0:02:19]}  Nfd7 {[%clk 0:02:32]} 10. Be3 {[%clk 0:02:15]}  Na6 {[%clk 0:02:26]} 11. Bxa6 {[%clk 0:02:08]}  bxa6 {[%clk 0:02:27]} 12. Qd2 {[%clk 0:02:07]}  Bb7 {[%clk 0:02:18]} 13. Bxh6 {[%clk 0:01:55]}  Nxc5 {[%clk 0:02:18]} 14. Bxg7 {[%clk 0:01:55]}  Kxg7 {[%clk 0:02:17]} 15. O-O-O {[%clk 0:01:47]}  Qxd2+ {[%clk 0:02:06]} 16. Kxd2 {[%clk 0:01:45]}  Nxe4+ {[%clk 0:02:05]} 17. Nxe4 {[%clk 0:01:45]}  Bxe4 {[%clk 0:02:06]} 18. Ke3 {[%clk 0:01:45]}  Bc6 {[%clk 0:02:04]} 19. Rc1 {[%clk 0:01:41]}  Rac8 {[%clk 0:02:03]} 20. Rhd1 {[%clk 0:01:32]}  a5 {[%clk 0:01:54]} 21. g3 {[%clk 0:01:30]}  Bxf3 {[%clk 0:01:50]} 22. Kxf3 {[%clk 0:01:31]}  e6 {[%clk 0:01:43]} 23. Ke3 {[%clk 0:01:27]}  g5 {[%clk 0:01:40]} 24. Rxc8 {[%clk 0:01:22]}  Rxc8 {[%clk 0:01:41]} 25. Rd7 {[%clk 0:01:23]}  Rc2 {[%clk 0:01:40]} 26. Rxa7 {[%clk 0:01:19]}  Rxb2 {[%clk 0:01:41]} 27. Rxa5 {[%clk 0:01:19]}  Kg6 {[%clk 0:01:41]} 28. h4 {[%clk 0:01:17]}  gxh4 {[%clk 0:01:31]} 29. gxh4 {[%clk 0:01:18]}  f6 {[%clk 0:01:31]} 30. Kf3 {[%clk 0:01:08]}  e5 {[%clk 0:01:30]} 31. Kg3 {[%clk 0:01:04]}  Rc2 {[%clk 0:01:27]} 32. Ra6 {[%clk 0:00:41]}  Rc3+ {[%clk 0:01:27]} 33. Kg2 {[%clk 0:00:40]}  Rc4 {[%clk 0:01:27]} 34. Kg3 {[%clk 0:00:35]}  Rc3+ {[%clk 0:01:24]} 35. Kg2 {[%clk 0:00:35]}  Kf5 {[%clk 0:01:20]} 36. Ra4 {[%clk 0:00:34]}  Rd3 {[%clk 0:01:17]} 37. Ra6 {[%clk 0:00:30]}  Rd4 {[%clk 0:01:14]} 38. Kg3 {[%clk 0:00:28]}  Rg4+ {[%clk 0:01:14]} 39. Kh3 {[%clk 0:00:29]}  Rf4 {[%clk 0:01:12]} 40. Kg3 {[%clk 0:00:29]}  Rg4+ {[%clk 0:01:12]} 41. Kh3 {[%clk 0:00:29]}  Rg1 {[%clk 0:01:13]} 42. a4 {[%clk 0:00:29]}  Ra1 {[%clk 0:01:10]} 43. a5 {[%clk 0:00:27]}  Ra2 {[%clk 0:01:05]} 44. Kg2 {[%clk 0:00:26]}  Ra3 {[%clk 0:01:06]} 45. Ra8 {[%clk 0:00:24]}  Kg4 {[%clk 0:01:01]} 46. a6 {[%clk 0:00:23]}  e4 {[%clk 0:00:52]} 47. a7 {[%clk 0:00:20]}  Kf4 {[%clk 0:00:52]} 48. h5 {[%clk 0:00:17]}  Ra2 {[%clk 0:00:53]} 49. h6 {[%clk 0:00:15]}  e3 {[%clk 0:00:53]} 50. h7 {[%clk 0:00:12]}  e2 {[%clk 0:00:32]} 51. Re8 {[%clk 0:00:10]} 1-0


[Site "https://www.chess.com"]

[Event "Titled Tuesday Blitz June 28 Late 2022"]
[White "Laurusas, Tomas"]
[Black "Svane, Rasmus"]
[WhiteFideId "12803731"]
[BlackFideId "4657101"]
[WhiteElo "2442"]
[BlackElo "2674"]
[Result "1-0"]
[Round "04"]
[TimeControl "180+1"]
[Date "2022.06.28"]
[WhiteClock "0:00:05"]
[BlackClock "0:00:04"]

1. d4 {[%clk 0:03:00]}  Nf6 {[%clk 0:03:00]} 2. c4 {[%clk 0:03:00]}  e6 {[%clk 0:03:00]} 3. Nf3 {[%clk 0:03:00]}  d5 {[%clk 0:03:00]} 4. Nc3 {[%clk 0:03:00]}  a6 {[%clk 0:03:00]} 5. cxd5 {[%clk 0:03:00]}  exd5 {[%clk 0:03:01]} 6. Bg5 {[%clk 0:03:00]}  Be6 {[%clk 0:03:01]} 7. e3 {[%clk 0:03:00]}  Nbd7 {[%clk 0:03:02]} 8. Bd3 {[%clk 0:02:59]}  Bd6 {[%clk 0:03:02]} 9. h3 {[%clk 0:02:59]}  c6 {[%clk 0:03:03]} 10. Qc2 {[%clk 0:02:59]}  Qc7 {[%clk 0:03:03]} 11. O-O-O {[%clk 0:02:57]}  h6 {[%clk 0:03:01]} 12. Bxf6 {[%clk 0:02:57]}  Nxf6 {[%clk 0:03:02]} 13. Kb1 {[%clk 0:02:57]}  O-O-O {[%clk 0:02:46]} 14. Rc1 {[%clk 0:02:55]}  Kb8 {[%clk 0:02:45]} 15. Na4 {[%clk 0:02:50]}  Rc8 {[%clk 0:02:41]} 16. Nc5 {[%clk 0:02:37]}  Nd7 {[%clk 0:02:32]} 17. Nb3 {[%clk 0:02:21]}  c5 {[%clk 0:02:21]} 18. dxc5 {[%clk 0:02:20]}  Nxc5 {[%clk 0:02:22]} 19. Nxc5 {[%clk 0:02:20]}  Bxc5 {[%clk 0:02:23]} 20. Nd4 {[%clk 0:02:13]}  Qb6 {[%clk 0:02:10]} 21. Qa4 {[%clk 0:02:09]}  Be7 {[%clk 0:02:04]} 22. Rxc8+ {[%clk 0:01:53]}  Rxc8 {[%clk 0:02:05]} 23. Rc1 {[%clk 0:01:53]}  Rxc1+ {[%clk 0:02:02]} 24. Kxc1 {[%clk 0:01:54]}  Bf6 {[%clk 0:01:54]} 25. Kc2 {[%clk 0:01:46]}  Qc7+ {[%clk 0:01:52]} 26. Kd2 {[%clk 0:01:44]}  Qh2 {[%clk 0:01:21]} 27. Bf1 {[%clk 0:01:41]}  Qg1 {[%clk 0:01:05]} 28. Ke1 {[%clk 0:01:39]}  Kc7 {[%clk 0:00:26]} 29. Qa5+ {[%clk 0:01:31]}  Kb8 {[%clk 0:00:21]} 30. Qb6 {[%clk 0:01:24]}  Bxd4 {[%clk 0:00:18]} 31. Qxd4 {[%clk 0:01:08]}  g6 {[%clk 0:00:10]} 32. Qf4+ {[%clk 0:01:05]}  Ka7 {[%clk 0:00:10]} 33. b3 {[%clk 0:00:57]}  Bf5 {[%clk 0:00:07]} 34. Qd4+ {[%clk 0:00:52]}  Ka8 {[%clk 0:00:07]} 35. Qxd5 {[%clk 0:00:52]}  h5 {[%clk 0:00:04]} 36. Ke2 {[%clk 0:00:49]}  Be6 {[%clk 0:00:04]} 37. Qd8+ {[%clk 0:00:46]}  Ka7 {[%clk 0:00:05]} 38. Qd6 {[%clk 0:00:46]}  Ka8 {[%clk 0:00:04]} 39. e4 {[%clk 0:00:34]}  Ka7 {[%clk 0:00:04]} 40. Qd3 {[%clk 0:00:20]}  Ka8 {[%clk 0:00:03]} 41. Ke3 {[%clk 0:00:20]}  Qh2 {[%clk 0:00:03]} 42. Qd8+ {[%clk 0:00:19]}  Ka7 {[%clk 0:00:04]} 43. Qd4+ {[%clk 0:00:19]}  Ka8 {[%clk 0:00:04]} 44. Kf3 {[%clk 0:00:08]}  Qg1 {[%clk 0:00:04]} 45. Bc4 {[%clk 0:00:07]}  Qc1 {[%clk 0:00:04]} 46. Bxe6 {[%clk 0:00:06]}  fxe6 {[%clk 0:00:05]} 47. Qd8+ {[%clk 0:00:05]}  Ka7 {[%clk 0:00:05]} 48. Qd4+ {[%clk 0:00:05]}  Ka8 {[%clk 0:00:06]} 49. Qe3 {[%clk 0:00:06]}  Qc6 {[%clk 0:00:06]} 50. Kf4 {[%clk 0:00:06]}  Qd6+ {[%clk 0:00:06]} 51. Kg5 {[%clk 0:00:06]}  e5 {[%clk 0:00:06]} 52. Qf3 {[%clk 0:00:06]}  Qb6 {[%clk 0:00:06]} 53. Qf6 {[%clk 0:00:06]}  Qd4 {[%clk 0:00:06]} 54. Qxg6 {[%clk 0:00:06]}  Qxf2 {[%clk 0:00:07]} 55. Kxh5 {[%clk 0:00:06]}  Qxa2 {[%clk 0:00:06]} 56. g4 {[%clk 0:00:06]}  Qxb3 {[%clk 0:00:06]} 57. Qe8+ {[%clk 0:00:06]}  Ka7 {[%clk 0:00:06]} 58. Qxe5 {[%clk 0:00:07]}  Qxh3+ {[%clk 0:00:07]} 59. Kg5 {[%clk 0:00:06]}  Qe3+ {[%clk 0:00:07]} 60. Kf5 {[%clk 0:00:06]}  Qf3+ {[%clk 0:00:06]} 61. Qf4 {[%clk 0:00:05]}  Qd3 {[%clk 0:00:06]} 62. g5 {[%clk 0:00:06]}  Qd7+ {[%clk 0:00:06]} 63. Kf6 {[%clk 0:00:06]}  Qd8+ {[%clk 0:00:07]} 64. Kg7 {[%clk 0:00:05]}  Qe7+ {[%clk 0:00:07]} 65. Kh6 {[%clk 0:00:06]}  Qe6+ {[%clk 0:00:06]} 66. g6 {[%clk 0:00:06]}  a5 {[%clk 0:00:06]} 67. Qf5 {[%clk 0:00:06]}  Qd6 {[%clk 0:00:05]} 68. e5 {[%clk 0:00:06]}  Qd2+ {[%clk 0:00:05]} 69. Kh7 {[%clk 0:00:06]}  Qh2+ {[%clk 0:00:05]} 70. Kg8 {[%clk 0:00:06]}  a4 {[%clk 0:00:06]} 71. g7 {[%clk 0:00:07]}  a3 {[%clk 0:00:07]} 72. Kf8 {[%clk 0:00:06]}  a2 {[%clk 0:00:06]} 73. Qf1 {[%clk 0:00:05]}  Qh6 {[%clk 0:00:04]} 74. Qf2+ {[%clk 0:00:05]}  Kb8 {[%clk 0:00:04]} 75. Qxa2 {[%clk 0:00:05]}  Qf4+ {[%clk 0:00:04]} 76. Qf7 {[%clk 0:00:05]}  Qb4+ {[%clk 0:00:03]} 77. Qe7 {[%clk 0:00:05]}  Qf4+ {[%clk 0:00:03]} 78. Ke8 {[%clk 0:00:06]}  Qa4+ {[%clk 0:00:03]} 79. Qd7 {[%clk 0:00:06]}  Qe4 {[%clk 0:00:01]} 80. Qd6+ {[%clk 0:00:04]}  Ka7 {[%clk 0:00:01]} 81. g8=Q {[%clk 0:00:05]}  Qa4+ {[%clk 0:00:01]} 82. Ke7 {[%clk 0:00:05]}  Qe4 {[%clk 0:00:01]} 83. Qg5 {[%clk 0:00:05]}  Qc4 {[%clk 0:00:01]} 84. Qe3+ {[%clk 0:00:04]}  Ka8 {[%clk 0:00:02]} 85. Qea3+ {[%clk 0:00:02]}  Qa6 {[%clk 0:00:01]} 86. Qaxa6+ {[%clk 0:00:03]}  bxa6 {[%clk 0:00:02]} 87. Qxa6+ {[%clk 0:00:03]}  Kb8 {[%clk 0:00:03]} 88. Qd6+ {[%clk 0:00:04]}  Ka8 {[%clk 0:00:04]} 89. Qd7 {[%clk 0:00:05]} 1-0


[Site "https://www.chess.com"]